bitfinex/quotes_BTCUSD_20220218
["timestamp","ask_amount","ask_price","bid_price","bid_amount"]
[1645184744059,0.00017129,40400.0,40399.0,0.0497]
[1645184744264,0.00017129,40400.0,40399.0,0.1497]
[1645184744461,0.0031822,40404.0,40399.0,0.1497]
[1645184744660,0.00017129,40402.0,40399.0,0.1497]
[1645184745160,0.00017129,40402.0,40399.0,0.1537]
[1645184745360,0.00017129,40402.0,40399.0,0.0537]
[1645184745563,0.0031822,40404.0,40399.0,0.0537]
[1645184745764,0.00025863,40403.0,40399.0,0.0537]
[1645184745962,0.09999999,40401.0,40399.0,0.0537]
[1645184746360,0.33577323,40402.0,40400.0,0.53040962]
[1645184746563,0.09499999,40401.0,40400.0,0.53040962]
[1645184746762,0.09499999,40403.0,40400.0,0.53040962]
[1645184747261,0.09525862,40403.0,40400.0,0.53340962]
[1645184747702,0.09525862,40403.0,40400.0,0.59530662]
[1645184747898,0.28402983,40403.0,40400.0,0.59530662]
[1645184748101,0.0031822,40404.0,40400.0,0.59530662]
[1645184748303,0.00344083,40404.0,40400.0,0.59530662]
[1645184748502,0.09499999,40403.0,40400.0,0.59230662]
[1645184748701,0.09499999,40403.0,40400.0,0.53040962]
[1645184748899,0.3,40402.0,40400.0,0.53040962]
[1645184749504,0.29504065,40401.0,40400.0,0.53040962]
[1645184749700,0.3,40402.0,40400.0,0.53040962]
[1645184750103,0.09525862,40403.0,40400.0,0.53040962]
[1645184750316,0.09525862,40403.0,40402.0,0.05]
[1645184750317,0.09091575,40403.0,40402.0,0.05]
[1645184750501,0.0012224,40405.0,40402.0,0.05]
[1645184750704,0.00025863,40404.0,40402.0,0.05]
[1645184751258,0.00025863,40404.0,40402.0,0.1]
[1645184751454,0.00025863,40404.0,40402.0,0.1015077]
[1645184751652,0.0012224,40405.0,40403.0,0.58040962]
[1645184751852,0.00148103,40405.0,40403.0,0.58040962]
[1645184752057,0.09213815,40405.0,40403.0,0.58040962]
[1645184752453,0.09213815,40405.0,40403.0,0.64230262]
[1645184752652,0.00148103,40405.0,40403.0,0.58040962]
[1645184752853,0.09187952,40405.0,40403.0,0.58040962]
[1645184753252,0.0012224,40405.0,40403.0,0.58040962]
[1645184753754,0.0012224,40405.0,40403.0,0.53040962]
[1645184754152,0.0012224,40405.0,40403.0,0.58040962]
[1645184754354,0.35062233,40405.0,40403.0,0.58040962]
[1645184754756,0.35062233,40405.0,40403.0,0.53040962]
[1645184755007,0.0012224,40405.0,40403.0,0.53040962]
[1645184755202,0.0012224,40405.0,40403.0,0.58040962]
[1645184755407,0.0012224,40405.0,40403.0,1.16479905]
[1645184755606,0.0001224,40405.0,40403.0,1.16479905]
[1645184755805,0.0001224,40405.0,40404.0,0.0099]
[1645184756005,5.571e-05,40405.0,40404.0,0.0099]
[1645184756606,5.571e-05,40405.0,40404.0,0.071786]
[1645184756804,5.571e-05,40405.0,40404.0,0.0783051]
[1645184757003,5.571e-05,40405.0,40404.0,0.60871472]
[1645184757407,5.571e-05,40405.0,40404.0,0.70871472]
[1645184758205,5.571e-05,40405.0,40404.0,0.59881472]
[1645184758410,5.571e-05,40405.0,40404.0,0.53692872]
[1645184758411,0.31815834,40405.0,40404.0,0.53692872]
[1645184758606,0.06785834,40405.0,40404.0,0.53692872]
[1645184758858,0.36785834,40405.0,40404.0,0.53692872]
[1645184759258,0.36885834,40405.0,40404.0,0.53692872]
[1645184759456,0.46885834,40405.0,40404.0,0.53692872]
[1645184759756,0.06885834,40405.0,40404.0,0.53692872]
[1645184760157,0.36885834,40405.0,40404.0,0.53692872]
[1645184760358,0.16785834,40405.0,40404.0,0.53692872]
[1645184760959,0.16780263,40405.0,40404.0,0.53692872]
[1645184761160,0.16880263,40405.0,40404.0,0.53692872]
[1645184761361,0.17065135,40405.0,40404.0,0.53040962]
[1645184761559,0.07065135,40405.0,40404.0,0.53040962]
[1645184762361,0.06965135,40405.0,40404.0,0.53040962]
[1645184763104,0.06965135,40405.0,40404.0,0.53240962]
[1645184764404,0.06965135,40405.0,40404.0,0.53040962]
[1645184764805,0.06953141,40405.0,40404.0,0.53040962]
[1645184765208,0.06953141,40405.0,40404.0,0.53240962]
[1645184766460,0.06453141,40405.0,40404.0,0.53040962]
[1645184766664,0.26710613,40405.0,40404.0,0.53040962]
[1645184766865,0.26710613,40405.0,40404.0,0.15973452]
[1645184766866,2.53453081,40405.0,40404.0,0.15973452]
[1645184767063,1.313,40404.0,40393.0,0.3]
[1645184767263,0.05,40401.0,40399.0,0.002]
[1645184767462,0.14035712,40400.0,40399.0,0.16173452]
[1645184767660,0.15025712,40400.0,40399.0,0.16173452]
[1645184767868,0.22025712,40400.0,40399.0,0.16173452]
[1645184768260,1.52335712,40400.0,40399.0,0.16173452]
[1645184768460,1.52335712,40400.0,40399.0,0.15973452]
[1645184768660,1.62335712,40400.0,40399.0,0.15973452]
[1645184769562,1.87335712,40400.0,40399.0,0.15973452]
[1645184770013,1.313,40398.0,40377.0,0.1998]
[1645184770204,1.313,40398.0,40374.0,0.00934287]
[1645184770205,0.09065712,40390.0,40378.0,0.07693]
[1645184770408,0.0497,40389.0,40378.0,0.015]
[1645184770604,0.32487818,40383.0,40378.0,0.015]
[1645184770804,0.05007325,40389.0,40387.0,0.23775161]
[1645184771004,0.56928252,40388.0,40387.0,0.23775161]
[1645184771206,0.61860927,40388.0,40387.0,0.23775161]
[1645184771403,0.85791633,40388.0,40387.0,0.23775161]
[1645184771603,2.27091633,40388.0,40387.0,0.23775161]
[1645184771806,2.83053476,40388.0,40387.0,0.23775161]
[1645184772004,2.83053476,40388.0,40378.0,0.015]
[1645184772005,1.313,40386.0,40378.0,0.015]
[1645184772205,0.09065712,40379.0,40373.0,0.003]
[1645184772406,1.313,40377.0,40362.0,0.06095073]
[1645184772605,0.3092,40378.0,40362.0,0.06095073]
[1645184772606,0.25420173,40373.0,40362.0,0.06095073]
[1645184772911,0.0497,40373.0,40366.0,0.00934287]
[1645184773106,0.0497,40373.0,40367.0,0.061944]
[1645184773309,0.0092,40378.0,40366.0,0.0095]
[1645184773310,0.00037325,40375.0,40366.0,0.0095]
[1645184773510,0.0092,40378.0,40368.0,0.123873]
[1645184773511,0.00025883,40372.0,40368.0,0.123873]
[1645184773754,0.00025883,40372.0,40364.0,0.22013067]
[1645184773755,0.00025883,40372.0,40369.0,0.05]
[1645184774155,0.25025883,40372.0,40365.0,0.111942]
[1645184774457,0.25,40372.0,40368.0,0.12388319]
[1645184774856,0.25025882,40372.0,40369.0,0.05]
[1645184775658,0.25,40372.0,40369.0,0.05]
[1645184775857,0.25,40372.0,40370.0,0.00934287]
[1645184776057,0.25,40372.0,40369.0,0.05]
[1645184776656,0.25,40372.0,40369.0,0.00149201]
[1645184777357,0.3,40377.0,40370.0,1.25]
[1645184777615,0.6642,40393.0,40377.0,0.34750968]
[1645184777814,0.6642,40393.0,40381.0,0.00934287]
[1645184778020,0.5643,40393.0,40381.0,0.00934287]
[1645184778212,0.5643,40393.0,40381.0,0.05934287]
[1645184778414,0.27442367,40387.0,40382.0,0.061918]
[1645184778613,0.2285485,40390.0,40384.0,0.00934287]
[1645184779012,0.2285485,40390.0,40383.0,0.00934287]
[1645184779212,0.2285485,40390.0,40384.0,0.003]
[1645184779414,0.5643,40393.0,40384.0,0.003]
[1645184779614,0.5643,40393.0,40384.0,0.12683588]
[1645184779615,0.29391243,40386.0,40384.0,0.12683588]
[1645184779917,0.29391243,40386.0,40385.0,0.0497]
[1645184780119,0.29391243,40386.0,40384.0,0.003]
[1645184780317,0.0093,40385.0,40384.0,0.003]
[1645184780519,0.50949567,40385.0,40377.0,0.123854]
[1645184780917,0.50949567,40385.0,40377.0,0.185784]
[1645184781117,0.50949567,40385.0,40379.0,0.06192993]
[1645184781353,0.20949567,40385.0,40383.0,0.00304708]
[1645184785600,0.20949567,40385.0,40383.0,0.00504708]
[1645184786603,0.20949567,40385.0,40374.0,0.11619149]
[1645184786604,0.45949567,40385.0,40374.0,0.11619149]
[1645184786801,0.45949567,40385.0,40374.0,0.21619149]
[1645184787002,0.45949567,40385.0,40377.0,0.061934]
[1645184787601,0.45949567,40385.0,40377.0,0.111934]
[1645184787801,0.44588684,40385.0,40377.0,0.161934]
[1645184788002,0.00025861,40383.0,40377.0,0.161934]
[1645184788204,0.00025861,40383.0,40377.0,0.05]
[1645184788406,0.00025861,40383.0,40378.0,0.061931]
[1645184788601,0.00025861,40383.0,40379.0,0.06192929]
[1645184788853,0.44588684,40385.0,40379.0,0.06192929]
[1645184789055,0.00025861,40383.0,40379.0,0.06192929]
[1645184789355,0.00025861,40383.0,40379.0,0.06392929]
[1645184789953,0.00025861,40383.0,40379.0,0.002]
[1645184790154,0.44588684,40385.0,40379.0,0.002]
[1645184790354,0.00025861,40383.0,40379.0,0.002]
[1645184790556,0.00025861,40383.0,40377.0,0.111933]
[1645184790754,0.00025861,40383.0,40377.0,0.061933]
[1645184791254,0.44588684,40385.0,40377.0,0.061933]
[1645184791454,0.00025862,40382.0,40377.0,0.061933]
[1645184791652,0.00181391,40382.0,40378.0,0.06193091]
[1645184792053,0.00181391,40382.0,40378.0,0.05693091]
[1645184792512,0.00155529,40382.0,40378.0,0.05693091]
[1645184792709,0.00181391,40382.0,40378.0,0.05693091]
[1645184793308,0.00181391,40382.0,40378.0,0.05993091]
[1645184793514,0.00181391,40382.0,40378.0,0.34154491]
[1645184793713,0.00155529,40382.0,40379.0,0.27974266]
[1645184794110,0.00181391,40382.0,40379.0,0.32974266]
[1645184794308,0.00181391,40382.0,40380.0,0.061918]
[1645184794909,0.00155529,40382.0,40380.0,0.061918]
[1645184795311,0.00111529,40382.0,40381.0,0.1]
[1645184795512,0.00111529,40382.0,40381.0,0.1497]
[1645184795711,0.00111529,40382.0,40381.0,0.3997]
[1645184795910,0.00111529,40382.0,40381.0,0.5497]
[1645184796751,0.00158952,40382.0,40381.0,0.6497]
[1645184796950,0.00158952,40382.0,40381.0,0.3497]
[1645184797150,0.00064952,40382.0,40381.0,0.6497]
[1645184797353,0.00217098,40383.0,40382.0,0.40129904]
[1645184797550,0.00217098,40383.0,40382.0,0.75099904]
[1645184797750,0.00217098,40383.0,40382.0,1.04788167]
[1645184797951,0.00107976,40383.0,40382.0,0.15099904]
[1645184798251,0.00025861,40384.0,40382.0,0.21290204]
[1645184798453,0.25,40385.0,40382.0,0.39861011]
[1645184798655,0.25025861,40385.0,40384.0,0.1]
[1645184798852,0.25025861,40385.0,40384.0,0.1997]
[1645184799652,0.25,40385.0,40384.0,0.1997]
[1645184799854,0.25,40385.0,40384.0,0.1947]
[1645184800510,0.00025861,40387.0,40385.0,1.2]
[1645184800711,0.00025861,40387.0,40386.0,0.0497]
[1645184800912,0.26679444,40403.0,40395.0,0.00258576]
[1645184801113,0.2846,40410.0,40396.0,0.111594]
[1645184801315,0.015,40400.0,40396.0,0.161594]
[1645184801910,0.015,40400.0,40396.0,0.22348753]
[1645184802511,0.015,40400.0,40396.0,0.34727653]
[1645184802811,0.015,40400.0,40398.0,0.21328653]
[1645184803011,0.015,40400.0,40399.0,0.3497]
[1645184803412,0.015,40400.0,40399.0,0.4497]
[1645184803609,0.015,40400.0,40399.0,0.1997]
[1645184804457,0.015,40400.0,40399.0,0.0997]
[1645184804956,0.015,40400.0,40399.0,0.07543]
[1645184806760,0.015,40400.0,40399.0,0.08187853]
[1645184807058,0.015,40400.0,40399.0,0.08587853]
[1645184808102,0.015,40400.0,40399.0,0.08187853]
[1645184808908,0.015,40400.0,40399.0,0.08587853]
[1645184809503,0.265,40400.0,40399.0,0.08587853]
[1645184810103,0.265,40400.0,40399.0,0.08187853]
[1645184811006,0.265,40400.0,40399.0,0.08687853]
[1645184812050,0.25,40400.0,40399.0,0.08687853]
[1645184812851,0.25,40400.0,40399.0,0.08187853]
[1645184814856,0.25,40400.0,40399.0,0.08587853]
[1645184816104,0.25,40400.0,40399.0,0.08187853]
[1645184818955,0.25,40400.0,40399.0,0.08487853]
[1645184820256,0.25,40400.0,40399.0,0.08187853]
[1645184821060,0.25,40400.0,40399.0,0.26752253]
[1645184821458,0.25,40400.0,40399.0,0.261074]
[1645184821657,0.25089714,40400.0,40399.0,0.261074]
[1645184824308,0.14089714,40400.0,40399.0,0.261074]
[1645184824910,0.14089714,40400.0,40399.0,0.265074]
[1645184826010,0.14089714,40400.0,40399.0,0.365074]
[1645184826252,0.14089714,40400.0,40399.0,0.361074]
[1645184827655,0.14089714,40400.0,40399.0,0.261074]
[1645184827856,0.14089714,40400.0,40399.0,0.361074]
[1645184828057,0.14068888,40400.0,40399.0,0.361074]
[1645184828857,0.14068888,40400.0,40399.0,0.261074]
[1645184829057,0.14068888,40400.0,40399.0,0.361074]
[1645184829460,0.14068888,40400.0,40399.0,0.235344]
[1645184829659,0.14068888,40400.0,40399.0,0.185644]
[1645184829863,0.14068888,40400.0,40396.0,0.18568253]
[1645184830104,0.14068888,40400.0,40397.0,0.061895]
[1645184830903,0.01388547,40405.0,40403.0,0.15714174]
[1645184831103,0.01388547,40405.0,40404.0,0.061891]
[1645184831104,0.00888547,40405.0,40404.0,0.061891]
[1645184831304,0.00888547,40405.0,40403.0,0.25714174]
[1645184831505,0.00888547,40405.0,40403.0,0.15714174]
[1645184832104,0.00888547,40405.0,40403.0,0.28092274]
[1645184832803,0.00888547,40405.0,40403.0,0.37063771]
[1645184833205,0.25888547,40405.0,40403.0,0.37063771]
[1645184833405,0.30819828,40404.0,40403.0,0.37063771]
[1645184833758,0.25888547,40405.0,40403.0,0.37063771]
[1645184834658,0.25388547,40405.0,40403.0,0.37063771]
[1645184834859,0.3,40404.0,40403.0,0.15714174]
[1645184835659,0.62032296,40404.0,40403.0,0.15714174]
[1645184836860,0.62032296,40404.0,40403.0,0.15914174]
[1645184837261,0.82032295,40404.0,40403.0,0.15914174]
[1645184837708,0.72032296,40404.0,40403.0,0.15914174]
[1645184837904,0.62032296,40404.0,40403.0,0.15914174]
[1645184838308,0.62032296,40404.0,40403.0,0.15714174]
[1645184838709,0.72032295,40404.0,40403.0,0.15714174]
[1645184838907,0.72132295,40404.0,40403.0,0.15714174]
[1645184839306,0.42132295,40404.0,40403.0,0.15714174]
[1645184839910,0.63688631,40404.0,40403.0,0.15714174]
[1645184840114,0.42132295,40404.0,40403.0,0.15714174]
[1645184840713,0.42132295,40404.0,40398.0,0.002]
[1645184840919,0.42132295,40404.0,40388.0,0.74446088]
[1645184840920,1.313,40398.0,40383.0,0.09447702]
[1645184841119,0.09999999,40388.0,40382.0,0.00129904]
[1645184841359,0.09999999,40385.0,40382.0,0.00129904]
[1645184841755,0.56212532,40384.0,40382.0,0.00129904]
[1645184842359,1.93094641,40383.0,40382.0,0.00129904]
[1645184842961,1.93194641,40383.0,40382.0,0.00129904]
[1645184844258,1.93094641,40383.0,40382.0,0.00129904]
[1645184844463,3.3439464,40383.0,40382.0,0.00129904]
[1645184844663,3.7436464,40383.0,40382.0,0.00129904]
[1645184845108,3.7446464,40383.0,40382.0,0.00129904]
[1645184845307,3.7485464,40383.0,40382.0,0.00129904]
[1645184845512,3.8105034,40383.0,40382.0,0.00129904]
[1645184846208,3.7485464,40383.0,40382.0,0.00129904]
[1645184846607,3.7485464,40383.0,40382.0,0.00461481]
[1645184846807,3.7475464,40383.0,40382.0,0.00633103]
[1645184847006,3.7485464,40383.0,40382.0,0.00633103]
[1645184847207,2.4355464,40383.0,40382.0,0.00633103]
[1645184847708,3.7485464,40383.0,40382.0,0.00633103]
[1645184848111,2.4355464,40383.0,40382.0,0.00633103]
[1645184848309,3.7485464,40383.0,40382.0,0.00633103]
[1645184848756,3.7475464,40383.0,40382.0,0.00633103]
[1645184849357,3.59784641,40383.0,40382.0,0.00633103]
[1645184849556,3.7475464,40383.0,40382.0,0.00633103]
[1645184850560,1.374953,40382.0,40380.0,0.00025877]
[1645184850767,1.6627,40381.0,40380.0,0.00025877]
[1645184851159,1.8127,40381.0,40380.0,0.00025877]
[1645184851461,1.8127,40381.0,40378.0,0.00025877]
[1645184851662,1.41299999,40379.0,40378.0,0.00025877]
[1645184851858,1.61269999,40379.0,40378.0,0.00025877]
[1645184852512,1.313,40377.0,40375.0,0.0005]
[1645184852705,1.9535666,40376.0,40375.0,0.0005]
[1645184852904,0.7405666,40376.0,40375.0,0.0005]
[1645184853505,0.99910203,40376.0,40375.0,0.0005]
[1645184853705,0.89910204,40376.0,40375.0,0.0005]
[1645184853904,0.99910203,40376.0,40375.0,0.0005]
[1645184854106,0.89910204,40376.0,40375.0,0.0005]
[1645184854305,0.99910203,40376.0,40375.0,0.0005]
[1645184855406,2.31210203,40376.0,40375.0,0.0005]
[1645184855811,2.41180203,40376.0,40375.0,0.0005]
[1645184856256,2.59660203,40376.0,40375.0,0.0005]
[1645184856455,2.74760203,40376.0,40375.0,0.0005]
[1645184856655,2.59760203,40376.0,40375.0,0.0005]
[1645184856857,2.60099947,40376.0,40375.0,0.0005]
[1645184857655,2.59999947,40376.0,40375.0,0.0005]
[1645184860015,2.16519948,40376.0,40375.0,0.0005]
[1645184860306,2.21519948,40376.0,40375.0,0.0005]
[1645184860503,2.20519948,40376.0,40375.0,0.0005]
[1645184861303,2.30519948,40376.0,40375.0,0.0005]
[1645184861503,2.30293958,40376.0,40375.0,0.00242556]
[1645184862805,2.26180204,40376.0,40375.0,0.00242556]
[1645184863004,2.31180204,40376.0,40375.0,0.00242556]
[1645184863203,2.26180204,40376.0,40375.0,0.00242556]
[1645184864656,2.02533543,40376.0,40375.0,0.00242556]
[1645184864857,1.97563543,40376.0,40375.0,0.00242556]
[1645184865256,2.02563543,40376.0,40375.0,0.00242556]
[1645184865656,2.02485543,40376.0,40375.0,0.00242556]
[1645184865857,2.28726559,40376.0,40375.0,0.00242556]
[1645184866060,0.97426559,40376.0,40375.0,0.00242556]
[1645184866257,0.66263543,40376.0,40375.0,0.00242556]
[1645184866458,0.66263543,40376.0,40375.0,0.00414798]
[1645184866659,0.0041,40376.0,40375.0,0.00414798]
[1645184867519,0.30565415,40380.0,40375.0,0.00414798]
[1645184868314,0.30565415,40380.0,40375.0,0.00440676]
[1645184868914,0.40565415,40380.0,40375.0,0.00440676]
[1645184869116,0.30565415,40380.0,40375.0,0.00440676]
[1645184869314,0.30565415,40380.0,40375.0,0.00414798]
[1645184869515,0.30565415,40380.0,40375.0,0.00440676]
[1645184869713,0.35565415,40380.0,40375.0,0.00440676]
[1645184870516,0.35565415,40380.0,40375.0,0.00414798]
[1645184870720,0.35565415,40380.0,40375.0,0.00440676]
[1645184871572,0.35565415,40380.0,40377.0,0.00561093]
[1645184872371,0.35665415,40380.0,40377.0,0.00561093]
[1645184872771,0.051,40380.0,40377.0,0.00561093]
[1645184873570,0.05,40380.0,40377.0,0.00561093]
[1645184876907,0.05,40380.0,40379.0,0.00368031]
[1645184881456,0.05,40380.0,40377.0,0.00372288]
[1645184881457,0.35,40380.0,40377.0,0.00025878]
[1645184881656,0.35298246,40380.0,40377.0,0.00025878]
[1645184882516,0.35298246,40380.0,40375.0,0.0005]
[1645184882706,0.24347599,40378.0,40376.0,0.00025878]
[1645184883706,0.24347599,40378.0,40375.0,0.0005]
[1645184883906,0.24347599,40378.0,40375.0,0.00075878]
[1645184884907,0.24347599,40378.0,40375.0,0.0005]
[1645184885910,0.35298246,40380.0,40375.0,0.0005]
[1645184886753,0.19630061,40378.0,40375.0,0.0005]
[1645184886953,0.00094192,40377.0,40375.0,0.0005]
[1645184887355,0.19853826,40378.0,40377.0,0.00188384]
[1645184888957,0.49853826,40378.0,40377.0,0.00188384]
[1645184889157,0.19853826,40378.0,40377.0,0.00188384]
[1645184889358,0.00223765,40378.0,40377.0,0.00188384]
[1645184890407,0.00323765,40378.0,40377.0,0.00188384]
[1645184891613,0.00323765,40378.0,40377.0,0.00168384]
[1645184891810,0.00098623,40380.0,40377.0,0.00367166]
[1645184893854,0.00098623,40380.0,40376.0,0.0028321]
[1645184894656,0.00098623,40380.0,40376.0,0.00257332]
[1645184894856,0.00098623,40380.0,40376.0,0.0028321]
[1645184896757,0.00098623,40380.0,40379.0,0.00198632]
[1645184898207,0.00098623,40380.0,40379.0,0.2657056]
[1645184899011,0.00098623,40380.0,40379.0,0.4154056]
[1645184899414,0.00098623,40380.0,40379.0,0.5154056]
[1645184899608,0.00098623,40380.0,40379.0,0.72582679]
[1645184899809,0.5877,40397.0,40380.0,0.06389145]
[1645184900011,0.5877,40397.0,40395.0,0.19416142]
[1645184900409,0.054,40401.0,40394.0,0.13569]
[1645184900609,0.054,40401.0,40394.0,0.09362]
[1645184900809,0.25602348,40399.0,40394.0,0.09362]
[1645184901257,0.25602348,40399.0,40394.0,0.061909]
[1645184901457,0.25602348,40399.0,40395.0,0.20114526]
[1645184901855,0.25576477,40399.0,40395.0,0.20114526]
[1645184902056,0.25602348,40399.0,40393.0,0.061913]
[1645184903056,0.25576477,40399.0,40393.0,0.061913]
[1645184903256,0.25602347,40399.0,40393.0,0.061913]
[1645184903457,0.0002587,40399.0,40393.0,0.061913]
[1645184903856,0.27202489,40396.0,40393.0,0.061913]
[1645184904059,0.27202489,40396.0,40392.0,0.123817]
[1645184904757,0.265,40396.0,40392.0,0.123817]
[1645184905432,0.24,40396.0,40392.0,0.123817]
[1645184905828,0.24,40396.0,40393.0,0.20187488]
[1645184906527,0.24,40396.0,40392.0,0.185729]
[1645184906528,0.24,40396.0,40392.0,0.123817]
[1645184906929,0.24,40396.0,40395.0,0.0075902]
[1645184907933,0.23966688,40396.0,40395.0,0.0075902]
[1645184908530,0.23966688,40396.0,40395.0,0.20233293]
[1645184909859,0.23966688,40396.0,40395.0,0.0095902]
[1645184910563,0.23966688,40396.0,40395.0,0.0075902]
[1645184911361,0.23966688,40396.0,40395.0,0.0095902]
[1645184911565,0.24067394,40396.0,40395.0,0.002]
[1645184912165,0.24067394,40396.0,40394.0,0.061909]
[1645184912364,0.24067394,40396.0,40393.0,0.061905]
[1645184913406,0.22597363,40395.0,40393.0,0.002]
[1645184914510,0.333587,40394.0,40393.0,0.002]
[1645184915107,0.22597363,40395.0,40393.0,0.002]
[1645184915306,0.22597363,40395.0,40391.0,0.00025875]
[1645184916862,0.22076739,40393.0,40391.0,0.00025875]
[1645184917461,0.22076739,40393.0,40385.0,0.123842]
[1645184917662,0.05,40391.0,40390.0,0.00025875]
[1645184918661,0.05,40391.0,40385.0,0.123842]
[1645184918862,0.05,40391.0,40388.0,0.00025875]
[1645184919763,0.05,40391.0,40385.0,0.123842]
[1645184920034,0.05,40391.0,40387.0,0.00025875]
[1645184920229,0.04986536,40391.0,40387.0,0.00025875]
[1645184920834,0.05234896,40391.0,40387.0,0.00025875]
[1645184921032,0.30002542,40390.0,40385.0,0.123842]
[1645184921230,0.05234896,40391.0,40387.0,0.00025875]
[1645184921430,0.0039,40394.0,40391.0,0.10469791]
[1645184921631,0.32845723,40395.0,40391.0,0.10469791]
[1645184921830,0.22845723,40395.0,40391.0,0.10469791]
[1645184922030,0.32845723,40395.0,40391.0,0.10469791]
[1645184922430,0.26482546,40393.0,40391.0,0.10495666]
[1645184922630,0.25482546,40393.0,40391.0,0.10495666]
[1645184923231,0.25482546,40393.0,40391.0,0.16687566]
[1645184923434,0.32845723,40395.0,40391.0,0.16661691]
[1645184924458,0.2823405,40393.0,40391.0,0.16661691]
[1645184924858,0.2823405,40393.0,40391.0,0.16687566]
[1645184925058,0.55417977,40395.0,40391.0,0.16687566]
[1645184925259,0.60417977,40395.0,40391.0,0.16687566]
[1645184925860,0.60417977,40395.0,40391.0,0.16661691]
[1645184926064,0.25056398,40393.0,40391.0,0.16687566]
[1645184926760,0.22845723,40395.0,40392.0,0.00760788]
[1645184927161,0.22845723,40395.0,40392.0,0.00486466]
[1645184927607,0.34327762,40394.0,40392.0,0.00486466]
[1645184930810,0.22845723,40395.0,40392.0,0.00486466]
[1645184931760,0.22845723,40395.0,40392.0,0.00370392]
[1645184932160,0.0024836,40395.0,40392.0,0.00370392]
[1645184933161,0.24992105,40395.0,40392.0,0.00370392]
[1645184933560,0.25092105,40395.0,40392.0,0.00370392]
[1645184934761,0.0024836,40395.0,40392.0,0.00370392]
[1645184935916,0.0024836,40395.0,40393.0,0.22843876]
[1645184936314,0.0024836,40395.0,40394.0,0.29190477]
[1645184936915,0.0024836,40395.0,40394.0,0.00185069]
[1645184941666,0.00555828,40395.0,40393.0,0.22843876]
[1645184942262,0.00555828,40395.0,40392.0,0.4445176]
[1645184942708,0.00555828,40395.0,40392.0,0.247622]
[1645184943109,0.00555828,40395.0,40392.0,0.123815]
[1645184943308,0.00555828,40395.0,40392.0,0.185725]
[1645184943808,0.00555828,40395.0,40392.0,0.235725]
[1645184946961,0.00555828,40395.0,40392.0,0.285725]
[1645184947358,0.00555828,40395.0,40392.0,0.185725]
[1645184947558,0.00555828,40395.0,40392.0,0.4326206]
[1645184947757,0.00555828,40395.0,40392.0,0.235725]
[1645184947959,0.00555828,40395.0,40392.0,0.3826206]
[1645184948160,0.00555828,40395.0,40392.0,0.185725]
[1645184949760,0.00555828,40395.0,40393.0,0.6190785]
[1645184950020,0.00555828,40395.0,40394.0,0.0497]
[1645184951513,0.00388547,40405.0,40402.0,0.0619]
[1645184953515,0.00488547,40405.0,40402.0,0.0619]
[1645184954785,0.00388547,40405.0,40402.0,0.0619]
[1645184955183,0.00388547,40405.0,40401.0,0.54898719]
[1645184955382,0.00388547,40405.0,40401.0,0.31611089]
[1645184955582,0.00488547,40405.0,40401.0,0.31611089]
[1645184955982,0.00514417,40405.0,40401.0,0.31611089]
[1645184956182,0.00514417,40405.0,40402.0,0.061899]
[1645184956383,0.00514417,40405.0,40402.0,0.31257122]
[1645184956884,0.00414417,40405.0,40404.0,0.0059043]
[1645184957083,0.07388547,40405.0,40404.0,0.0059043]
[1645184959317,0.00388547,40405.0,40404.0,0.0059043]
[1645184959524,0.00388547,40405.0,40404.0,0.0069043]
[1645184959719,0.00388547,40405.0,40404.0,0.0167043]
[1645184959920,0.00388547,40405.0,40404.0,0.0667043]
[1645184960118,0.00388547,40405.0,40404.0,0.1285963]
[1645184960318,0.00388547,40405.0,40404.0,0.0785963]
[1645184960519,0.00388547,40405.0,40404.0,0.1285963]
[1645184960719,0.00388547,40405.0,40404.0,0.43913583]
[1645184960919,0.00388547,40405.0,40404.0,0.53913583]
[1645184961118,0.00388547,40405.0,40404.0,0.2285963]
[1645184961366,0.00388547,40405.0,40404.0,0.2275963]
[1645184961561,0.00388547,40405.0,40404.0,0.22951197]
[1645184962164,0.00388547,40405.0,40404.0,0.12951197]
[1645184962365,0.25388547,40405.0,40404.0,0.07951197]
[1645184962570,0.25388547,40405.0,40404.0,0.06971197]
[1645184963566,0.25388547,40405.0,40404.0,0.07171197]
[1645184964174,0.25388547,40405.0,40398.0,0.0094]
[1645184964175,0.55388547,40405.0,40398.0,0.0094]
[1645184964374,0.633587,40404.0,40398.0,0.0094]
[1645184964569,0.633587,40404.0,40395.0,0.3946]
[1645184964570,0.05,40403.0,40395.0,0.3946]
[1645184964770,0.333587,40402.0,40395.0,0.3946]
[1645184965021,0.2197446,40397.0,40395.0,0.3946]
[1645184965224,0.41149937,40396.0,40394.0,0.00025877]
[1645184965516,0.2197446,40397.0,40394.0,0.00025877]
[1645184965517,0.2197446,40397.0,40394.0,0.00025874]
[1645184966114,0.21637297,40397.0,40394.0,0.00025874]
[1645184966316,0.0012418,40398.0,40394.0,0.00025874]
[1645184966515,0.26534801,40398.0,40394.0,0.00025874]
[1645184966718,0.0497,40397.0,40394.0,0.00025874]
[1645184967722,0.0497,40397.0,40392.0,0.0096]
[1645184967917,0.0497,40397.0,40393.0,0.00025874]
[1645184968963,0.0497,40397.0,40392.0,0.0096]
[1645184969164,0.0497,40397.0,40393.0,0.00025874]
[1645184969563,0.3497,40397.0,40393.0,0.00025874]
[1645184970163,0.3497,40397.0,40392.0,0.0096]
[1645184970370,0.3497,40397.0,40393.0,0.00025874]
[1645184971366,0.0497,40397.0,40392.0,0.0096]
[1645184971563,0.00115573,40396.0,40393.0,0.00025874]
[1645184971764,0.05085573,40396.0,40393.0,0.00025874]
[1645184972611,0.05085573,40396.0,40392.0,0.0096]
[1645184972810,0.05085573,40396.0,40392.0,0.00985874]
[1645184973810,0.05085573,40396.0,40392.0,0.0096]
[1645184974012,0.05085573,40396.0,40392.0,0.00985874]
[1645184974612,0.05085573,40396.0,40393.0,0.001]
[1645184976013,0.05085573,40396.0,40392.0,0.00968905]
[1645184976264,0.05085573,40396.0,40392.0,0.0096]
[1645184976461,0.05085573,40396.0,40392.0,0.00968905]
[1645184977461,0.05085573,40396.0,40392.0,0.0096]
[1645184977663,0.333587,40395.0,40392.0,8.905e-05]
[1645184977864,1.6627,40394.0,40392.0,8.905e-05]
[1645184978066,1.946587,40393.0,40392.0,8.905e-05]
[1645184978261,2.046287,40393.0,40392.0,8.905e-05]
[1645184978462,2.146287,40393.0,40392.0,8.905e-05]
[1645184978662,2.146287,40393.0,40391.0,0.10469791]
[1645184978663,2.04815458,40393.0,40391.0,0.10469791]
[1645184978865,0.81003595,40393.0,40391.0,0.10469791]